bitfinex-derivatives/quotes_BTCF0:USTF0_20250207
["timestamp","ask_amount","ask_price","bid_price","bid_amount"]
[1738946702070,0.5666962,98045.0,98044.0,0.18199682]
[1738946704079,0.002,98045.0,98044.0,0.18199682]
[1738946704972,0.002,98045.0,98043.0,0.2038998]
[1738946705483,0.2058973,98045.0,98043.0,0.2038998]
[1738946705675,0.2058973,98045.0,98037.0,0.1251]
[1738946705676,0.002,98045.0,98037.0,0.1251]
[1738946705876,0.002,98045.0,98040.0,0.2039065]
[1738946706076,0.002,98045.0,98037.0,0.1251]
[1738946706474,0.1198544,98047.0,98037.0,0.1251]
[1738946706677,0.1198544,98047.0,98046.0,0.2038942]
[1738946706880,0.3608,98049.0,98045.0,0.2038951]
[1738946707084,0.3608,98049.0,98037.0,0.1251]
[1738946707284,0.001,98045.0,98037.0,0.1251]
[1738946707676,0.3608,98049.0,98037.0,0.1251]
[1738946707985,0.003,98047.0,98046.0,0.2038942]
[1738946708885,0.2068929,98047.0,98043.0,0.2038994]
[1738946709181,0.2038951,98046.0,98037.0,0.1251]
[1738946709385,0.2038979,98045.0,98042.0,0.2039008]
[1738946709586,0.1208544,98047.0,98037.0,0.1251]
[1738946709774,0.1208544,98047.0,98045.0,0.2038959]
[1738946709980,0.003,98047.0,98045.0,0.2038959]
[1738946710377,0.3608,98049.0,98037.0,0.1251]
[1738946710684,0.3608,98049.0,98048.0,0.20389]
[1738946712488,0.3618,98049.0,98048.0,0.20389]
[1738946713181,0.3608,98049.0,98048.0,0.20389]
[1738946714381,0.51248797,98049.0,98048.0,0.20389]
[1738946716488,0.15168797,98049.0,98048.0,0.20389]
[1738946717187,0.2038879,98049.0,98048.0,0.20389]
[1738946718183,0.2038966,98045.0,98044.0,0.2038978]
[1738946718692,0.00961924,98054.0,98037.0,0.4859]
[1738946718693,0.2038846,98051.0,98050.0,0.2038856]
[1738946719395,0.2038811,98053.0,98042.0,0.203901]
[1738946719591,0.2038822,98052.0,98051.0,0.2038837]
[1738946719994,0.01001149,98055.0,98050.0,0.004]
[1738946720188,0.01001149,98055.0,98050.0,0.2078858]
[1738946720189,0.2038838,98051.0,98050.0,0.2078858]
[1738946721095,0.2038838,98051.0,98050.0,0.004]
[1738946721884,0.2048817,98052.0,98051.0,0.004]
[1738946722384,0.48941151,98057.0,98037.0,0.49607963]
[1738946722584,0.48941151,98057.0,98050.0,0.2078858]
[1738946722585,0.2048838,98051.0,98050.0,0.2078858]
[1738946723092,0.2048838,98051.0,98050.0,0.2038858]
[1738946723291,0.2038838,98051.0,98050.0,0.2038858]
[1738946723888,0.2038838,98051.0,98050.0,0.13774158]
[1738946724297,0.2038838,98051.0,98050.0,0.004]
[1738946724497,0.2038838,98051.0,98050.0,0.2078858]
[1738946724687,0.2038838,98051.0,98050.0,0.004]
[1738946725289,0.34364015,98051.0,98050.0,0.004]
[1738946725600,0.34464015,98051.0,98050.0,0.2078858]
[1738946726299,0.34464015,98051.0,98050.0,0.004]
[1738946726492,0.34464015,98051.0,98050.0,0.2078858]
[1738946726887,0.34464015,98051.0,98050.0,0.004]
[1738946728599,0.14075635,98051.0,98050.0,0.5686858]
[1738946728802,0.00111292,98068.0,98067.0,0.2038505]
[1738946728992,0.00015291,98068.0,98067.0,0.5646505]
[1738946730198,0.00315291,98068.0,98067.0,0.5646505]
[1738946731399,0.00315291,98068.0,98067.0,0.3618]
[1738946731703,0.00015291,98068.0,98067.0,0.001]
[1738946732002,0.00315291,98068.0,98067.0,0.001]
[1738946732193,0.00315291,98068.0,98060.0,0.3213641]
[1738946732498,0.00115291,98068.0,98067.0,0.002]
[1738946732900,0.00115291,98068.0,98066.0,0.2038517]
[1738946733092,0.00315291,98068.0,98067.0,0.001]
[1738946734503,0.00015291,98068.0,98066.0,0.2038509]
[1738946734699,0.00315291,98068.0,98067.0,0.001]
[1738946735098,0.00015291,98068.0,98067.0,0.001]
[1738946735300,0.00315291,98068.0,98067.0,0.001]
[1738946736192,0.20700131,98068.0,98067.0,0.001]
[1738946737297,0.00315291,98068.0,98067.0,0.001]
[1738946740704,0.00315291,98068.0,98067.0,0.2048505]
[1738946741007,0.00315291,98068.0,98067.0,0.001]
[1738946741201,0.20700131,98068.0,98067.0,0.001]
[1738946742508,0.20700131,98068.0,98067.0,0.00049359]
[1738946743509,0.21656913,98068.0,98067.0,0.00049359]
[1738946744411,0.19796093,98068.0,98048.0,0.1048]
[1738946744711,0.5646816,98053.0,98052.0,0.2038817]
[1738946745806,0.3608,98053.0,98052.0,0.2038817]
[1738946746008,0.3608,98053.0,98052.0,0.2068817]
[1738946747109,0.5646796,98053.0,98052.0,0.2068817]
[1738946747805,0.3618,98053.0,98052.0,0.2078817]
[1738946748003,0.001,98053.0,98052.0,0.2078817]
[1738946748803,0.23482797,98067.0,98066.0,0.2038525]
[1738946749005,0.23482797,98067.0,98066.0,0.5646525]
[1738946750605,0.23682797,98067.0,98066.0,0.5646525]
[1738946750809,0.23682797,98067.0,98066.0,0.5656525]
[1738946751010,0.002,98067.0,98066.0,0.5656525]
[1738946751602,0.002,98067.0,98066.0,0.2048525]
[1738946755015,0.3628,98067.0,98066.0,0.001]
[1738946756311,0.5666505,98067.0,98066.0,0.001]
[1738946756513,0.61623376,98067.0,98066.0,0.001]
[1738946759010,0.25543376,98067.0,98066.0,0.001]
[1738946759220,0.25543376,98067.0,98066.0,0.2048525]
[1738946759519,0.13442635,98067.0,98066.0,0.2048525]
[1738946762316,0.2120204,98094.0,98066.0,0.301]
[1738946762514,0.21106039,98094.0,98093.0,0.2037964]
[1738946762715,0.57186039,98094.0,98088.0,0.2038066]
[1738946763007,0.2037971,98093.0,98091.0,0.2037996]
[1738946763212,0.5728204,98094.0,98093.0,0.2037964]
[1738946763409,0.57186039,98094.0,98093.0,0.2037964]
[1738946763608,0.58086039,98094.0,98093.0,0.2037964]
[1738946763812,0.3788,98094.0,98093.0,0.2037964]
[1738946764619,0.3708,98094.0,98093.0,0.2037964]
[1738946764923,0.3658,98094.0,98093.0,0.2037964]
[1738946765312,0.2038111,98086.0,98084.0,0.00015299]
[1738946765518,0.3608,98085.0,98084.0,0.00015299]
[1738946766422,0.2038111,98086.0,98084.0,0.00015299]
[1738946766923,0.3608,98085.0,98084.0,0.00015299]
[1738946767116,0.4674,98093.0,98084.0,0.00215299]
[1738946767316,0.4664,98093.0,98092.0,0.2037985]
[1738946767625,0.3608,98093.0,98092.0,0.2037985]
[1738946767924,0.21279021,98094.0,98092.0,0.2037985]
[1738946769131,0.21279021,98094.0,98092.0,0.5645985]
[1738946769313,0.21279021,98094.0,98093.0,0.1068]
[1738946769516,0.21279021,98094.0,98093.0,0.3161]
[1738946770320,0.21679021,98094.0,98093.0,0.1068]
[1738946771124,0.21779021,98094.0,98093.0,0.1068]
[1738946772629,0.3658,98094.0,98084.0,0.00015299]
[1738946773117,0.3658,98094.0,98084.0,0.20396669]
[1738946773319,0.2038117,98086.0,98084.0,0.00015299]
[1738946773919,0.3608,98085.0,98084.0,0.00015299]
[1738946774723,0.3608,98085.0,98084.0,0.00203003]
[1738946774917,0.2038629,98061.0,98059.0,0.0981]
[1738946775320,0.2038775,98054.0,98053.0,0.1]
[1738946776830,0.2068775,98054.0,98053.0,0.1]
[1738946777722,0.2078775,98054.0,98053.0,0.1]
[1738946778319,0.004,98054.0,98053.0,0.3038796]
[1738946778523,0.00015299,98063.0,98062.0,0.2038609]
[1738946778733,0.00015299,98063.0,98062.0,0.5646609]
[1738946779227,0.00015299,98063.0,98055.0,0.2038734]
[1738946779430,0.1520964,98061.0,98055.0,0.2038734]
[1738946779626,0.2038733,98056.0,98055.0,0.2038734]
[1738946779936,0.1520964,98061.0,98058.0,0.2038684]
[1738946780332,0.1520964,98061.0,98059.0,0.2038666]
[1738946780628,0.1520964,98061.0,98053.0,0.1]
[1738946780832,0.2038757,98055.0,98054.0,0.2038775]
[1738946781034,0.2038757,98055.0,98046.0,0.1198544]
[1738946781035,0.3608,98058.0,98042.0,0.3020022]
[1738946781229,0.2038941,98047.0,98042.0,0.3020022]
[1738946781532,0.001,98056.0,98055.0,0.001]
[1738946783131,0.37062592,98058.0,98043.0,0.2038987]
[1738946783328,0.2038723,98057.0,98043.0,0.2038987]
[1738946783637,0.04958847,98046.0,98043.0,0.2038987]
[1738946784031,0.04958847,98046.0,98044.0,0.2038968]
[1738946785539,0.25348337,98046.0,98044.0,0.2038968]
[1738946786041,0.25548337,98046.0,98044.0,0.2038968]
[1738946786342,0.05158847,98046.0,98044.0,0.2038968]
[1738946786927,0.05158847,98046.0,98044.0,0.2048968]
[1738946787342,0.002,98046.0,98044.0,0.2048968]
[1738946787641,0.002,98046.0,98044.0,0.001]
[1738946787841,0.2058946,98046.0,98044.0,0.001]
[1738946788435,0.002,98046.0,98045.0,0.3608]
[1738946788631,0.002,98046.0,98045.0,0.5646962]
[1738946789036,0.20401259,98063.0,98046.0,0.2038925]
[1738946789232,0.20401259,98063.0,98045.0,0.3608]
[1738946789233,0.2038681,98059.0,98058.0,0.2038691]
[1738946789431,0.00015299,98063.0,98055.0,0.2038742]
[1738946789632,0.00015299,98063.0,98053.0,0.1198544]
[1738946789943,0.00015299,98063.0,98049.0,0.2038878]
[1738946790336,0.2038758,98055.0,98044.0,0.2038976]
[1738946790537,0.3608,98055.0,98044.0,0.2038976]
[1738946790743,0.2038777,98054.0,98053.0,0.001]
[1738946791440,0.46046001,98055.0,98020.0,0.1198544]
[1738946791643,0.1198544,98050.0,98021.0,0.1041]
[1738946791841,0.2055,98053.0,98035.0,0.2039153]
[1738946791842,0.2039108,98038.0,98035.0,0.2039153]
[1738946792049,0.2038882,98049.0,98032.0,0.3608]
[1738946792341,0.2038882,98049.0,98044.0,0.2048963]
[1738946792549,0.2055,98053.0,98044.0,0.001]
[1738946792755,0.2038962,98045.0,98044.0,0.001]
[1738946793654,0.203899,98044.0,98042.0,0.2039012]
[1738946794657,0.2055,98053.0,98041.0,0.3608]
[1738946794860,0.2039024,98042.0,98041.0,0.3608]
[1738946795455,0.002,98045.0,98041.0,0.3608]
[1738946795956,0.2038922,98047.0,98045.0,0.2038955]
[1738946797046,0.2038993,98044.0,98039.0,0.2039069]
[1738946797251,0.2039008,98043.0,98033.0,0.0992]
[1738946797649,0.2039008,98043.0,98041.0,0.2039038]
[1738946798556,0.001,98043.0,98034.0,0.203919]
[1738946798757,0.203917,98035.0,98034.0,0.203919]
[1738946799155,0.2039253,98031.0,98030.0,0.49102043]
[1738946799362,0.2039253,98031.0,98030.0,0.3608]
[1738946799663,0.203914,98037.0,98034.0,0.2039183]
[1738946799965,0.203914,98037.0,98035.0,0.2039162]
[1738946800261,0.203914,98037.0,98036.0,0.2039149]
[1738946800654,0.203917,98035.0,98034.0,0.002]
[1738946801159,0.203917,98035.0,98029.0,0.00984513]
[1738946801363,0.3618,98037.0,98034.0,0.2039186]
[1738946801556,0.3608,98037.0,98030.0,0.004]
[1738946801757,0.2039246,98032.0,98031.0,0.2039253]
[1738946801957,0.3608,98034.0,98011.0,0.1048]
[1738946802162,0.2039649,98012.0,98011.0,0.1048]
[1738946802460,0.2039649,98012.0,97991.0,0.0998]
[1738946802461,0.2039732,98008.0,97991.0,0.1048]
[1738946802662,0.2039732,98008.0,98003.0,0.00987076]
[1738946802862,0.2039732,98008.0,98003.0,0.21385366]
[1738946803063,0.2039732,98008.0,97993.0,0.3608]
[1738946803264,0.2039732,98008.0,97992.0,0.2040048]
[1738946803458,0.2039877,98001.0,97985.0,0.2040205]
[1738946803657,0.2039877,98001.0,97980.0,0.18199682]
[1738946803658,0.2040294,97981.0,97980.0,0.18199682]
[1738946804358,0.2040544,97969.0,97949.0,0.45141224]
[1738946804562,0.6236544,97969.0,97968.0,0.14239527]
[1738946804956,0.2040689,97962.0,97949.0,0.45085224]
[1738946805163,0.2040939,97950.0,97949.0,0.45085224]
[1738946805367,0.5648939,97950.0,97949.0,0.45085224]
[1738946805569,0.6236939,97950.0,97949.0,0.45085224]
[1738946805968,0.6236939,97950.0,97939.0,0.68564964]
[1738946805969,0.4196,97950.0,97939.0,0.48153344]
[1738946806270,0.2041002,97947.0,97939.0,0.48101344]
[1738946807370,0.2629002,97947.0,97939.0,0.48101344]
[1738946809374,0.2041164,97940.0,97931.0,0.0006]
[1738946809574,0.3608,97939.0,97927.0,0.2041404]
[1738946809867,0.3608,97939.0,97930.0,0.2041338]
[1738946810366,0.3608,97939.0,97924.0,0.5649464]
[1738946810568,0.2041327,97932.0,97924.0,0.5649464]
[1738946810868,0.3608,97925.0,97900.0,0.19]
[1738946811080,0.3608,97925.0,97901.0,0.2041955]
[1738946811081,0.4196,97925.0,97901.0,0.2041955]
[1738946811258,0.2041903,97904.0,97900.0,0.19]
[1738946811669,0.2041929,97903.0,97900.0,0.19]
[1738946811868,0.36176001,97906.0,97900.0,0.19]
[1738946812058,0.0588,97910.0,97909.0,0.2041794]
[1738946812369,0.0588,97910.0,97900.0,0.19]
[1738946812568,0.2041952,97902.0,97900.0,0.19]
[1738946813068,0.001,97904.0,97883.0,0.37045633]
[1738946813274,0.3608,97884.0,97877.0,0.2042445]
[1738946814372,0.3608,97884.0,97859.0,0.2042821]
[1738946814669,0.18042992,97870.0,97851.0,0.462]
[1738946814855,0.3608,97873.0,97864.0,0.2042719]
[1738946815057,0.37078696,97884.0,97860.0,0.3608]
[1738946815270,0.0588,97883.0,97878.0,0.2042439]
[1738946815674,0.37078696,97884.0,97878.0,0.2042439]
[1738946816371,0.37178696,97884.0,97878.0,0.2042439]
[1738946816966,0.37078696,97884.0,97878.0,0.02763975]
[1738946817167,0.37178696,97884.0,97878.0,0.2042439]
[1738946818073,0.57602016,97884.0,97878.0,0.2042439]
[1738946818261,0.2042355,97883.0,97878.0,0.2052439]
[1738946818463,0.3618,97884.0,97878.0,0.001]
[1738946818670,0.001,97884.0,97883.0,0.2042336]
[1738946819070,0.001,97884.0,97878.0,0.001]
[1738946819269,0.00015325,97890.0,97889.0,0.2042211]
[1738946820175,0.3608,97905.0,97904.0,0.2041898]
[1738946820371,0.2041549,97921.0,97898.0,0.2042021]
[1738946820572,0.18042992,97930.0,97896.0,0.3608]
[1738946820877,0.00974645,97924.0,97916.0,0.2041648]
[1738946821180,0.3608,97919.0,97897.0,0.2095]
[1738946821369,0.2041794,97909.0,97903.0,0.2041902]
[1738946822279,0.3608,97911.0,97898.0,0.00015325]
[1738946822573,0.2041989,97900.0,97898.0,0.00015325]
[1738946822775,0.2041989,97900.0,97898.0,5e-08]
[1738946823076,0.1018,97899.0,97860.0,0.3608]
[1738946823378,0.2042795,97861.0,97860.0,0.3608]
[1738946824274,0.00015325,97870.0,97862.0,0.2042771]
[1738946824972,0.00015325,97870.0,97861.0,0.2042795]
[1738946825168,0.00015325,97870.0,97860.0,0.3608]
[1738946825674,0.001,97861.0,97860.0,0.3608]
[1738946826379,0.00115325,97870.0,97863.0,0.2042735]
[1738946826580,0.3608,97864.0,97850.0,0.05]
[1738946826767,0.5651004,97851.0,97850.0,0.05]
[1738946826972,0.5651004,97851.0,97820.0,0.99671332]
[1738946826973,0.3608,97851.0,97821.0,0.0979]
[1738946827276,0.2043041,97850.0,97836.0,0.20586399]
[1738946827491,0.3608,97851.0,97845.0,0.2043126]
[1738946827675,0.3608,97851.0,97849.0,0.2043036]
[1738946828175,0.3608,97864.0,97842.0,0.3608]
[1738946828369,0.3608,97864.0,97851.0,0.2042986]
[1738946828766,0.00015325,97870.0,97857.0,0.3608]
[1738946828971,0.3608,97896.0,97867.0,0.3608]
[1738946829171,0.3705829,97896.0,97883.0,0.3608]
[1738946829382,0.3705829,97896.0,97895.0,0.2042086]
[1738946829383,0.3608,97896.0,97895.0,0.2042086]
[1738946829565,0.00153344,97901.0,97890.0,0.2042173]
[1738946829769,0.01137854,97901.0,97890.0,0.10841415]
[1738946829974,0.00153344,97901.0,97890.0,0.10841415]
[1738946830288,0.3608,97895.0,97881.0,0.2042369]
[1738946830584,0.2042115,97894.0,97886.0,0.00015325]
[1738946830778,0.3608,97895.0,97886.0,0.00015325]
[1738946831075,0.01,97896.0,97894.0,0.2042107]
[1738946831279,0.15173042,97906.0,97900.0,0.2041981]
[1738946831878,0.00853344,97901.0,97900.0,0.2041981]
[1738946832084,0.00853344,97901.0,97878.0,0.0510605]
[1738946832085,0.002,97895.0,97846.0,0.00052]
[1738946832267,0.002,97895.0,97822.0,0.6007]
[1738946832268,0.3608,97865.0,97855.0,0.20429]
[1738946832468,0.2042902,97856.0,97844.0,0.2043131]
[1738946832781,0.2042886,97857.0,97851.0,0.3608]
[1738946833074,0.00015325,97860.0,97851.0,0.3608]
[1738946833276,0.2042935,97855.0,97851.0,0.3608]
[1738946833466,0.00015325,97860.0,97852.0,0.2042983]
[1738946833974,0.001,97856.0,97852.0,0.2042983]
[1738946834191,0.001,97856.0,97851.0,0.3608]
[1738946834488,0.2042955,97854.0,97852.0,0.1041]
[1738946834980,0.2042955,97854.0,97844.0,0.001]
[1738946834981,0.2043129,97845.0,97844.0,0.001]
[1738946835172,0.2043129,97845.0,97835.0,0.2043329]
[1738946835173,0.2043169,97844.0,97835.0,0.2043329]
[1738946835373,0.3608,97847.0,97831.0,0.3608]
[1738946835374,0.2043029,97850.0,97839.0,0.2043236]
[1738946835779,0.2043029,97850.0,97840.0,0.2043218]
[1738946835974,0.2043029,97850.0,97842.0,0.5651188]
[1738946836181,0.3608,97857.0,97842.0,0.3608]
[1738946836373,0.15173042,97858.0,97842.0,0.3608]
[1738946836374,0.06785043,97858.0,97856.0,0.56509]
[1738946836682,0.3608,97889.0,97856.0,0.3608]
[1738946836884,0.3608,97889.0,97877.0,0.35037252]
[1738946837078,0.5650222,97889.0,97880.0,0.2042386]
[1738946837279,0.3608,97889.0,97877.0,0.35037252]
[1738946837675,0.204227,97887.0,97877.0,0.35037252]
[1738946837979,0.3608,97878.0,97877.0,0.2042452]
[1738946838182,0.3608,97878.0,97873.0,0.00015325]
[1738946838183,0.204252,97875.0,97873.0,0.00015325]
[1738946838881,0.21279021,97885.0,97873.0,0.00015325]
[1738946839186,0.2042524,97874.0,97873.0,0.00015325]
[1738946841088,0.25392677,97874.0,97873.0,0.00215325]
[1738946841786,0.25492677,97874.0,97873.0,0.00215325]
[1738946842183,0.05067437,97874.0,97873.0,0.00215325]
[1738946842381,0.05067437,97874.0,97873.0,0.002]
[1738946842877,0.04967437,97874.0,97873.0,0.3054]
[1738946843191,0.04967437,97874.0,97873.0,0.3064]
[1738946843682,0.18278666,97880.0,97879.0,0.204242]
[1738946844593,0.21279021,97890.0,97889.0,0.2042211]
[1738946845882,0.21479021,97890.0,97889.0,0.2042211]
[1738946846289,0.2042216,97889.0,97883.0,0.2042323]
[1738946846585,0.3608,97884.0,97873.0,0.31316013]
[1738946846787,0.2042763,97863.0,97852.0,0.2042969]
[1738946847092,0.2042763,97863.0,97843.0,0.3608]
[1738946847093,0.2042883,97857.0,97850.0,0.2043025]
[1738946847284,0.2042883,97857.0,97843.0,0.3608]
[1738946847485,0.3608,97858.0,97843.0,0.3608]
[1738946847677,0.2042803,97861.0,97856.0,0.2042891]
[1738946847879,0.00015325,97867.0,97863.0,0.2042751]
[1738946848080,0.00015325,97867.0,97855.0,0.3608]
[1738946848293,0.00015325,97867.0,97864.0,0.2042727]
[1738946848491,0.00015325,97867.0,97866.0,0.2042691]
[1738946849393,0.00015325,97867.0,97863.0,0.204274]
[1738946849789,0.2042719,97865.0,97863.0,0.204274]
[1738946849984,0.2042839,97859.0,97855.0,0.3628]
[1738946850180,0.3608,97861.0,97855.0,0.002]
[1738946850495,0.2042863,97858.0,97855.0,0.002]
[1738946850890,0.3608,97861.0,97850.0,0.05868]
[1738946851096,0.3608,97861.0,97848.0,0.2043058]
[1738946851288,0.2042997,97852.0,97842.0,0.0967]
[1738946851485,0.2042918,97856.0,97842.0,0.0967]
[1738946851694,0.002,97858.0,97854.0,0.2042938]
[1738946851996,0.002,97858.0,97856.0,0.2042895]
[1738946852192,0.001,97861.0,97859.0,0.2042828]
[1738946852500,0.2042918,97856.0,97853.0,0.3608]
[1738946852692,0.001,97861.0,97859.0,0.2042819]
[1738946852992,0.00015325,97867.0,97859.0,0.2042819]
[1738946853197,0.00015325,97867.0,97865.0,0.2042707]
[1738946855686,0.00015325,97867.0,97863.0,0.3608]
[1738946855885,0.2042717,97865.0,97863.0,0.3608]
[1738946856096,0.00015325,97867.0,97863.0,0.3608]
[1738946856281,0.00115325,97867.0,97864.0,0.2042729]
[1738946856490,0.00115325,97867.0,97865.0,0.002]
[1738946857095,0.20442155,97867.0,97865.0,0.002]
[1738946857492,0.2042691,97866.0,97865.0,0.002]
[1738946857689,0.00015325,97867.0,97865.0,0.002]
[1738946857889,0.00015325,97867.0,97866.0,0.2042691]
[1738946858089,0.00015325,97867.0,97866.0,0.3040691]
[1738946858795,0.0985,97895.0,97866.0,0.81928]
[1738946858990,0.1011,97909.0,97892.0,0.3608]
[1738946859192,0.01017899,97907.0,97900.0,0.2041965]
[1738946859491,0.1011,97909.0,97893.0,0.0981]
[1738946859699,0.3608,97894.0,97879.0,0.05868]
[1738946859895,0.2042414,97880.0,97875.0,0.3608]
[1738946860100,0.3608,97886.0,97877.0,0.00015325]
[1738946860593,0.00015325,97896.0,97877.0,0.00015325]
[1738946860796,0.00015325,97896.0,97894.0,0.2042099]
[1738946861291,0.20436095,97896.0,97892.0,0.001]
[1738946861591,0.20436095,97896.0,97887.0,0.3003244]
[1738946861592,0.00015325,97896.0,97894.0,0.204209]
[1738946861797,0.00415325,97896.0,97894.0,0.204209]
[1738946861993,0.00415325,97896.0,97886.0,0.21420281]
[1738946862196,0.00015325,97896.0,97891.0,0.3608]
[1738946862398,0.00415325,97896.0,97895.0,0.2042086]
[1738946863297,0.00715325,97896.0,97891.0,0.3608]
[1738946863484,0.2042167,97892.0,97883.0,0.00999997]
[1738946863687,0.00715325,97896.0,97880.0,0.23906992]
[1738946863887,0.00715325,97896.0,97894.0,0.204209]
[1738946865000,0.00315325,97896.0,97894.0,0.204209]
[1738946865189,0.00715325,97896.0,97894.0,0.204209]
[1738946865385,0.00415325,97896.0,97894.0,0.204209]
[1738946865598,0.18289378,97913.0,97912.0,0.2041731]
[1738946867091,0.19189378,97913.0,97912.0,0.2041731]
[1738946867700,0.19189378,97913.0,97912.0,0.5649731]
[1738946867893,0.20089378,97913.0,97912.0,0.5659731]
[1738946868296,0.20089378,97913.0,97912.0,0.3618]
[1738946868696,0.20089378,97913.0,97912.0,0.001]
[1738946869203,0.018,97913.0,97912.0,0.001]
[1738946870897,0.12,97913.0,97912.0,0.001]
[1738946871104,0.12,97913.0,97894.0,0.3608]
[1738946871298,0.2042189,97891.0,97884.0,0.2042295]
[1738946871495,0.0510453,97909.0,97874.0,0.0586]
[1738946871496,0.3608,97895.0,97874.0,0.0586]
[1738946871802,0.2042234,97888.0,97881.0,0.2042375]
[1738946872009,0.2042267,97887.0,97880.0,0.3608]
[1738946872202,0.2042267,97887.0,97880.0,0.5650396]
[1738946872504,0.002,97891.0,97880.0,0.3608]
[1738946872803,0.002,97891.0,97880.0,0.54122992]
[1738946873005,0.002,97891.0,97880.0,0.3608]
[1738946873207,0.2042254,97887.0,97880.0,0.5660393]
[1738946873402,0.002,97891.0,97886.0,0.2042257]
[1738946873594,0.002,97891.0,97887.0,0.2042238]
[1738946873797,0.002,97891.0,97880.0,0.54222992]
[1738946874001,0.002,97891.0,97889.0,0.2042202]
[1738946874299,0.00015325,97893.0,97892.0,0.2042148]
[1738946874504,0.204186,97906.0,97896.0,0.2042048]
[1738946874706,0.204186,97906.0,97897.0,0.2042028]
[1738946874901,0.26714379,97913.0,97901.0,0.2041941]
[1738946875211,0.2041737,97912.0,97903.0,0.2041912]
[1738946875408,0.2041737,97912.0,97905.0,0.2041874]
[1738946875607,0.102,97913.0,97900.0,0.18042992]
[1738946875816,0.102,97913.0,97898.0,0.00015325]
[1738946876005,0.2041925,97903.0,97898.0,0.00015325]
[1738946876505,0.3608,97901.0,97898.0,0.00015325]
[1738946876704,0.2042,97900.0,97898.0,0.00015325]
[1738946877816,0.004,97901.0,97899.0,0.2042002]
[1738946878012,0.003,97901.0,97899.0,0.2042002]
[1738946878206,0.16371106,97902.0,97901.0,0.2041961]
[1738946878410,0.16371106,97902.0,97901.0,0.5649961]
[1738946879909,0.16471106,97902.0,97901.0,0.3628]
[1738946880112,0.16471106,97902.0,97901.0,0.002]
[1738946880307,0.16471106,97902.0,97901.0,0.01218383]
[1738946880519,0.001,97902.0,97901.0,0.004]
[1738946882816,0.003,97902.0,97901.0,0.002]
[1738946883021,0.2042215,97889.0,97881.0,0.2042362]
[1738946883221,0.3608,97893.0,97889.0,0.2042208]
[1738946883524,0.007,97902.0,97901.0,0.2041961]
[1738946883913,0.006,97902.0,97901.0,0.2041961]
[1738946884114,0.002,97902.0,97901.0,0.2041961]
[1738946884812,0.002,97902.0,97901.0,0.2061961]
[1738946885923,0.001,97902.0,97901.0,0.004]
[1738946886519,0.16831957,97902.0,97901.0,0.004]
[1738946887221,0.17331957,97902.0,97901.0,0.002]
[1738946887416,0.17331957,97902.0,97900.0,0.2041964]
[1738946887619,0.17931957,97902.0,97901.0,0.001]
[1738946888015,0.17331957,97902.0,97900.0,0.2041964]
[1738946888221,0.17331957,97902.0,97901.0,0.001]
[1738946888613,0.17331957,97902.0,97900.0,0.2041964]
[1738946888928,0.16731957,97902.0,97901.0,0.002]
[1738946889125,0.16731957,97902.0,97901.0,0.004]
[1738946889520,0.21279021,97906.0,97905.0,0.2041877]
[1738946889827,0.21279021,97906.0,97905.0,0.2627477]
[1738946890423,0.21279021,97908.0,97907.0,0.2041836]
[1738946890617,0.21279021,97908.0,97907.0,0.5649836]
[1738946890823,0.21279021,97908.0,97907.0,0.8649836]
[1738946891127,0.3608,97940.0,97934.0,0.2041273]
[1738946891318,0.5649038,97946.0,97945.0,0.2041043]
[1738946891319,0.00096001,97946.0,97945.0,0.2041043]
[1738946891520,0.00096001,97946.0,97930.0,0.3608]
[1738946891521,0.3608,97956.0,97938.0,0.3608]
[1738946891721,0.3608,97948.0,97926.0,0.3608]
[1738946892024,0.3608,97939.0,97926.0,0.3608]
[1738946892216,0.1954,97938.0,97927.0,0.00015316]
[1738946892622,0.3995206,97938.0,97927.0,0.00015316]
[1738946893330,0.1954,97938.0,97935.0,0.2041243]
[1738946893626,0.009,97946.0,97945.0,0.001]
[1738946894128,0.009,97946.0,97927.0,0.00015316]
[1738946894129,0.2041225,97937.0,97927.0,0.00015316]
[1738946894424,0.2041244,97936.0,97927.0,0.00015316]
[1738946894626,0.004,97938.0,97927.0,0.00015316]
[1738946894822,0.001,97946.0,97937.0,0.3608]
[1738946895021,0.001,97946.0,97945.0,0.3608]
[1738946895422,0.00015316,97947.0,97946.0,0.2041023]
[1738946895829,0.00015316,97947.0,97945.0,0.3618]
[1738946896328,0.00015316,97947.0,97945.0,0.5659033]
[1738946897225,0.002,97946.0,97945.0,0.5659033]
[1738946897731,0.00115316,97947.0,97945.0,0.5659033]
[1738946898229,0.18295104,97962.0,97946.0,0.0986]
[1738946898424,0.18295104,97962.0,97961.0,0.564871]
[1738946899427,0.18895104,97962.0,97961.0,0.564871]
[1738946899617,0.30324963,97968.0,97967.0,0.2040585]
[1738946900033,0.00015316,97971.0,97961.0,0.72212]
[1738946900220,0.00015316,97971.0,97970.0,0.5648523]
[1738946900420,0.36176001,97995.0,97974.0,0.2040439]
[1738946900624,0.3608,97995.0,97971.0,0.101]
[1738946901023,0.3608,97983.0,97972.0,0.05852]
[1738946901428,0.3608,97983.0,97974.0,0.2040438]
[1738946901623,0.00015316,97987.0,97977.0,0.2040369]
[1738946901825,0.00015316,97987.0,97972.0,0.05852]
[1738946902036,0.00015316,97987.0,97985.0,0.2040199]
[1738946902734,0.00015316,97987.0,97986.0,0.3608]
[1738946903627,0.00715316,97987.0,97986.0,0.3608]
[1738946904131,0.00715316,97987.0,97986.0,0.3618]
[1738946904632,0.1,98000.0,97986.0,0.3618]
[1738946904835,0.1,98000.0,97999.0,0.2039919]
[1738946905926,0.109,98000.0,97990.0,0.23890992]
[1738946906132,0.109,98000.0,97990.0,0.05848]
[1738946906331,0.109,98000.0,97990.0,0.24881491]
[1738946906533,0.2039997,97996.0,97990.0,0.00990499]
[1738946906727,0.116,98000.0,97986.0,0.42128]
[1738946906927,0.109,98000.0,97996.0,0.2039963]
[1738946907231,0.116,98000.0,97997.0,0.2039951]
[1738946907629,0.109,98000.0,97999.0,0.001]
[1738946908132,0.4698,98000.0,97999.0,0.001]
[1738946908338,0.4698,98000.0,97990.0,0.001]
[1738946908529,0.5648085,97991.0,97990.0,0.001]
[1738946908729,0.47084001,98000.0,97990.0,0.001]
[1738946908927,0.204008,97992.0,97990.0,0.001]